[Event "Lidkoping Open 2019"]
[Site "Lidkoping"]
[Date "2019.08.24"]
[Round "3.9"]
[White "Olsson, Bo"]
[Black "Nordlund, Jim"]
[Result "1/2-1/2"]
[ECO "A55"]
[WhiteElo "1984"]
[BlackElo "2130"]
[Annotator "NA"]
[PlyCount "67"]
[EventDate "2019.08.19"]
[EventType "swiss"]
[EventCountry "SWE"]
[SourceTitle "playchess.com"]
[Source "ChessBase"]
[SourceQuality "1"]
[TimeControl "2700+10"]

1. Nf3 {[%emt 0:00:00]} d6 {[%emt 0:00:00]} 2. d4 {[%emt 0:00:01]} Nf6 {[%emt 0:00:00]} 3. c4 {[%emt 0:00:13]} Nbd7 {[%emt 0:00:07]} 4. g3 {[%emt 0:00:40]} e5 {[%emt 0:00:22]} 5. Nc3 {[%emt 0:00:47]} Be7 {[%emt 0:00:21]} 6. Bg2 {[%emt 0:00:18]} O-O {[%emt 0:00:25]} 7. O-O {[%emt 0:00:08]} Re8 {[%emt 0:00:29]} 8. Qc2 {[%emt 0:01:41]} c6 {[%emt 0:01:35]} 9. h3 {[%emt 0:00:44]} Bf8 {[%emt 0:01:07]} 10. e4 {[%emt 0:01:30]} Qc7 {[%emt 0:00:51]} 11. Be3 {[%emt 0:00:41]} a6 {[%emt 0:01:08]} 12. a4 {[%emt 0:03:08]} a5 {[%emt 0:00:42]} 13. Rfd1 {[%emt 0:02:20]} g6 {[%emt 0:00:50]} 14. Rac1 {[%emt 0:01:42]} exd4 {[%emt 0:02:50]} 15. Nxd4 {[%emt 0:00:51]} Nc5 {[%emt 0:00:31]} 16. Rd2 {[%emt 0:01:33]} Be6 {[%emt 0:01:32]} 17. Nxe6 {[%emt 0:03:00]} Rxe6 {[%emt 0:03:05]} 18. Rcd1 {[%emt 0:06:05]} Nfd7 {[%emt 0:01:16]} 19. f4 {[%emt 0:00:56]} Rae8 {[%emt 0:01:20]} 20. Bf2 {[%emt 0:01:31]} h5 {[%emt 0:09:27]} 21. h4 {[%emt 0:00:49]} Nf6 {[%emt 0:00:28]} 22. Bxc5 {[%emt 0:02:42]} dxc5 {[%emt 0:00:03]} 23. e5 {[%emt 0:01:37]} Ng4 {[%emt 0:00:47]} 24. Rd7 {[%emt 0:01:30]} Qb6 {[%emt 0:01:25]} 25. R1d3 {[%emt 0:10:06]} f5 {[%emt 0:00:59]} 26. Bf3 {[%emt 0:01:05]} Nh6 {[%emt 0:02:53]} 27. b3 {[%emt 0:00:18]} R6e7 {[%emt 0:00:38]} 28. Rxe7 {[%emt 0:00:28]} Bxe7 {[%emt 0:00:51]} 29. Ne2 {[%emt 0:00:34]} Rd8 {[%emt 0:00:27]} 30. Qd2 {[%emt 0:00:23]} Rxd3 {[%emt 0:01:04]} 31. Qxd3 {[%emt 0:00:02]} Qd8 {[%emt 0:00:00]} 32. Qxd8+ {[%emt 0:00:02]} Bxd8 {[%emt 0:00:02]} 33. Kf2 {[%emt 0:00:04]} Kf7 {[%emt 0:01:01]} 34. Ke3 {[%emt 0:00:13]} 1/2-1/2

[Event "Lidkoping Open 2019"]
[Site "Lidkoping"]
[Date "2019.08.24"]
[Round "3.10"]
[White "Friberg, Hans"]
[Black "Kjellqvist, Fredrik"]
[Result "1-0"]
[ECO "A42"]
[WhiteElo "2129"]
[BlackElo "1778"]
[Annotator "NA"]
[PlyCount "89"]
[EventDate "2019.08.19"]
[EventType "swiss"]
[EventCountry "SWE"]
[SourceTitle "playchess.com"]
[Source "ChessBase"]
[SourceQuality "1"]
[TimeControl "2700+10"]

1. e4 {[%emt 0:00:00]} d6 {[%emt 0:00:10]} 2. d4 {[%emt 0:00:10]} g6 {[%emt 0:00:04]} 3. c4 {[%emt 0:01:16]} Bg7 {[%emt 0:00:02]} 4. Nc3 {[%emt 0:01:23]} f5 {[%emt 0:05:50]} 5. Be3 {[%emt 0:04:45]} Nc6 {[%emt 0:03:03]} 6. d5 {[%emt 0:01:50]} Ne5 {[%emt 0:04:57]} 7. h3 {[%emt 0:00:24]} c5 {[%emt 0:00:46]} 8. Qd2 {[%emt 0:06:54]} Nf6 {[%emt 0:00:49]} 9. f4 {[%emt 0:01:07]} Nf7 {[%emt 0:00:38]} 10. exf5 {[%emt 0:00:40]} Bxf5 {[%emt 0:00:33]} 11. Bd3 {[%emt 0:00:32]} e6 {[%emt 0:02:00]} 12. dxe6 {[%emt 0:01:24]} Bxe6 {[%emt 0:00:02]} 13. Nf3 {[%emt 0:00:31]} a6 {[%emt 0:02:20]} 14. O-O {[%emt 0:08:10]} Qd7 {[%emt 0:03:37]} 15. Rae1 {[%emt 0:03:07]} O-O-O {[%emt 0:02:50]} 16. Ng5 {[%emt 0:02:52]} Bf5 {[%emt 0:01:47]} 17. Bxf5 {[%emt 0:02:42]} gxf5 {[%emt 0:00:16]} 18. Nxf7 {[%emt 0:01:14]} Qxf7 {[%emt 0:00:02]} 19. Qd3 {[%emt 0:01:02]} Qg6 {[%emt 0:02:27]} 20. Bd2 {[%emt 0:01:05]} Nh5 {[%emt 0:01:50]} 21. Nd5 {[%emt 0:00:48]} Kb8 {[%emt 0:03:24]} 22. Ne7 {[%emt 0:01:27]} Qf7 {[%emt 0:00:57]} 23. Nxf5 {[%emt 0:01:15]} d5 {[%emt 0:01:17]} 24. Re7 {[%emt 0:00:38]} Bd4+ {[%emt 0:00:36]} 25. Kh2 {[%emt 0:01:43]} dxc4 {[%emt 0:00:04]} 26. Qe4 {[%emt 0:00:01]} Qd5 {[%emt 0:00:22]} 27. Qxd5 {[%emt 0:01:10]} Rxd5 {[%emt 0:00:01]} 28. g4 {[%emt 0:00:05]} Nf6 {[%emt 0:00:21]} 29. Bc3 {[%emt 0:00:04]} Bxc3 {[%emt 0:00:37]} 30. bxc3 {[%emt 0:00:01]} Rd2+ {[%emt 0:00:03]} 31. Kg3 {[%emt 0:00:01]} Rhd8 {[%emt 0:00:22]} 32. g5 {[%emt 0:00:21]} R8d3+ {[%emt 0:01:49]} 33. Rf3 {[%emt 0:00:07]} Nd5 {[%emt 0:00:19]} 34. Rxh7 {[%emt 0:00:10]} Nxc3 {[%emt 0:00:02]} 35. Rh8+ {[%emt 0:00:48]} Kc7 {[%emt 0:00:03]} 36. Rxd3 {[%emt 0:00:20]} cxd3 {[%emt 0:00:01]} 37. g6 {[%emt 0:00:10]} Ne4+ {[%emt 0:00:14]} 38. Kf3 {[%emt 0:00:04]} Re2 {[%emt 0:04:32]} 39. Rh7+ {[%emt 0:00:26]} Kb6 {[%emt 0:00:06]} 40. Rh6 {[%emt 0:00:11]} Nd2+ {[%emt 0:00:07]} 41. Kg4 {[%emt 0:00:09]} Rg2+ {[%emt 0:00:05]} 42. Kh5 {[%emt 0:00:29]} Nf3 {[%emt 0:00:12]} 43. g7+ {[%emt 0:00:16]} Kb5 {[%emt 0:00:03]} 44. Rg6 {[%emt 0:00:02]} d2 {[%emt 0:01:52]} 45. Ne3 {[%emt 0:00:01]} 1-0

[Event "Lidkoping Open 2019"]
[Site "Lidkoping"]
[Date "2019.08.24"]
[Round "3.11"]
[White "Mardell, Jonas"]
[Black "Staunsbjerg, Valdemar A"]
[Result "1/2-1/2"]
[ECO "B22"]
[WhiteElo "2059"]
[BlackElo "1832"]
[Annotator "NA"]
[PlyCount "56"]
[EventDate "2019.08.19"]
[EventType "swiss"]
[EventCountry "SWE"]
[SourceTitle "playchess.com"]
[Source "ChessBase"]
[SourceQuality "1"]
[TimeControl "2700+10"]

1. e4 {[%emt 0:00:00]} c5 {[%emt 0:00:11]} 2. c3 {[%emt 0:00:04]} d5 {[%emt 0:00:04]} 3. exd5 {[%emt 0:00:02]} Qxd5 {[%emt 0:00:12]} 4. d4 {[%emt 0:00:02]} cxd4 {[%emt 0:00:41]} 5. cxd4 {[%emt 0:00:04]} Nc6 {[%emt 0:00:31]} 6. Nf3 {[%emt 0:00:04]} Bg4 {[%emt 0:01:21]} 7. Be2 {[%emt 0:02:31]} e6 {[%emt 0:01:40]} 8. Nc3 {[%emt 0:00:19]} Bb4 {[%emt 0:00:16]} 9. O-O {[%emt 0:00:08]} Qa5 {[%emt 0:06:25]} 10. Be3 {[%emt 0:11:14]} Nf6 {[%emt 0:02:23]} 11. Qb3 {[%emt 0:01:01]} O-O {[%emt 0:04:24]} 12. a3 {[%emt 0:00:34]} Bxc3 {[%emt 0:00:17]} 13. bxc3 {[%emt 0:00:02]} Qc7 {[%emt 0:00:22]} 14. Rac1 {[%emt 0:02:38]} h6 {[%emt 0:04:07]} 15. c4 {[%emt 0:05:58]} Rfd8 {[%emt 0:01:16]} 16. Rfd1 {[%emt 0:00:39]} e5 {[%emt 0:05:59]} 17. dxe5 {[%emt 0:09:22]} Nxe5 {[%emt 0:04:05]} 18. Nxe5 {[%emt 0:03:42]} Bxe2 {[%emt 0:03:11]} 19. Rxd8+ {[%emt 0:01:38]} Rxd8 {[%emt 0:00:23]} 20. Qb2 {[%emt 0:00:12]} Bxc4 {[%emt 0:03:36]} 21. Nxc4 {[%emt 0:03:49]} Qxc4 {[%emt 0:00:17]} 22. h3 {[%emt 0:00:15]} Qa6 {[%emt 0:02:04]} 23. Rb1 {[%emt 0:02:25]} Rd7 {[%emt 0:01:38]} 24. Qc3 {[%emt 0:01:09]} b6 {[%emt 0:00:52]} 25. Bd4 {[%emt 0:00:37]} Ne4 {[%emt 0:01:21]} 26. Qe3 {[%emt 0:00:26]} Qb7 {[%emt 0:00:35]} 27. f3 {[%emt 0:00:13]} Ng5 {[%emt 0:00:35]} 28. Qe5 {[%emt 0:00:04]} Ne6 {[%emt 0:00:19]} 1/2-1/2

[Event "Lidkoping Open 2019"]
[Site "Lidkoping"]
[Date "2019.08.24"]
[Round "3.12"]
[White "Bergre, Joachim"]
[Black "Dyrnes, Jussi"]
[Result "1-0"]
[ECO "A41"]
[WhiteElo "1928"]
[BlackElo "1779"]
[Annotator "NA"]
[PlyCount "95"]
[EventDate "2019.08.19"]
[EventType "swiss"]
[EventCountry "SWE"]
[SourceTitle "playchess.com"]
[Source "ChessBase"]
[SourceQuality "1"]
[TimeControl "2700+10"]

1. Nf3 {[%emt 0:00:04]} g6 {[%emt 0:00:00]} 2. g3 {[%emt 0:00:36]} Bg7 {[%emt 0:00:03]} 3. d4 {[%emt 0:00:15]} d6 {[%emt 0:00:15]} 4. Bg2 {[%emt 0:00:20]} Nd7 {[%emt 0:00:13]} 5. c4 {[%emt 0:00:39]} e6 {[%emt 0:00:22]} 6. Nc3 {[%emt 0:00:38]} Ne7 {[%emt 0:00:45]} 7. O-O {[%emt 0:00:57]} O-O {[%emt 0:01:32]} 8. e3 {[%emt 0:00:25]} a6 {[%emt 0:01:12]} 9. b3 {[%emt 0:03:10]} b6 {[%emt 0:01:30]} 10. Bb2 {[%emt 0:01:17]} Bb7 {[%emt 0:00:04]} 11. Rc1 {[%emt 0:00:26]} Nf6 {[%emt 0:02:37]} 12. Qe2 {[%emt 0:00:41]} Ne4 {[%emt 0:00:57]} 13. Rfd1 {[%emt 0:00:35]} h6 {[%emt 0:00:50]} 14. a3 {[%emt 0:08:36]} Ra7 {[%emt 0:00:52]} 15. b4 {[%emt 0:01:09]} Qa8 {[%emt 0:01:14]} 16. Nxe4 {[%emt 0:00:53]} Bxe4 {[%emt 0:00:03]} 17. Ne1 {[%emt 0:00:12]} Bxg2 {[%emt 0:00:05]} 18. Nxg2 {[%emt 0:00:02]} Qe4 {[%emt 0:05:50]} 19. f3 {[%emt 0:02:26]} Qb7 {[%emt 0:01:15]} 20. Nf4 {[%emt 0:02:29]} Rfa8 {[%emt 0:03:40]} 21. e4 {[%emt 0:02:34]} b5 {[%emt 0:02:16]} 22. d5 {[%emt 0:02:14]} e5 {[%emt 0:01:06]} 23. Nd3 {[%emt 0:00:13]} bxc4 {[%emt 0:04:04]} 24. Rxc4 {[%emt 0:00:14]} a5 {[%emt 0:00:43]} 25. Rdc1 {[%emt 0:02:31]} Qb5 {[%emt 0:00:28]} 26. Kg2 {[%emt 0:01:44]} axb4 {[%emt 0:01:28]} 27. Nxb4 {[%emt 0:01:44]} Nc8 {[%emt 0:05:35]} 28. Qd3 {[%emt 0:03:20]} Nb6 {[%emt 0:03:50]} 29. Rxc7 {[%emt 0:00:35]} Qxd3 {[%emt 0:00:16]} 30. Nxd3 {[%emt 0:00:02]} Rxc7 {[%emt 0:00:52]} 31. Rxc7 {[%emt 0:00:05]} Na4 {[%emt 0:00:09]} 32. Bc1 {[%emt 0:00:21]} f5 {[%emt 0:03:06]} 33. Kf2 {[%emt 0:00:23]} Rb8 {[%emt 0:00:29]} 34. Rc4 {[%emt 0:01:28]} Ra8 {[%emt 0:00:28]} 35. Ke2 {[%emt 0:00:20]} Kf7 {[%emt 0:00:03]} 36. Rc7+ {[%emt 0:01:06]} Kf6 {[%emt 0:01:13]} 37. Bd2 {[%emt 0:00:22]} Bf8 {[%emt 0:00:31]} 38. Bb4 {[%emt 0:00:41]} Nb6 {[%emt 0:00:11]} 39. Rc6 {[%emt 0:00:36]} Nc8 {[%emt 0:00:21]} 40. Nb2 {[%emt 0:00:19]} Na7 {[%emt 0:00:25]} 41. Ra6 {[%emt 0:01:01]} Be7 {[%emt 0:00:07]} 42. Nc4 {[%emt 0:00:24]} fxe4 {[%emt 0:00:35]} 43. fxe4 {[%emt 0:00:07]} Kg5 {[%emt 0:00:05]} 44. h3 {[%emt 0:00:28]} h5 {[%emt 0:00:03]} 45. Bxd6 {[%emt 0:00:16]} Bxd6 {[%emt 0:00:11]} 46. Nxd6 {[%emt 0:00:02]} h4 {[%emt 0:00:11]} 47. Nf7+ {[%emt 0:00:19]} Kh5 {[%emt 0:00:04]} 48. g4# {[%emt 0:03:41]} 1-0

[Event "Lidkoping Open 2019"]
[Site "Lidkoping"]
[Date "2019.08.24"]
[Round "3.13"]
[White "Nordstrom, Felix"]
[Black "Wiklund, Robert"]
[Result "1/2-1/2"]
[ECO "D58"]
[WhiteElo "2060"]
[BlackElo "1785"]
[Annotator "NA"]
[PlyCount "61"]
[EventDate "2019.08.19"]
[EventType "swiss"]
[EventCountry "SWE"]
[SourceTitle "playchess.com"]
[Source "ChessBase"]
[SourceQuality "1"]
[TimeControl "2700+10"]

1. d4 {[%emt 0:00:00]} d5 {[%emt 0:01:21]} 2. c4 {[%emt 0:00:02]} e6 {[%emt 0:00:02]} 3. Nc3 {[%emt 0:00:05]} Nf6 {[%emt 0:00:03]} 4. Bg5 {[%emt 0:00:06]} Be7 {[%emt 0:00:01]} 5. e3 {[%emt 0:00:07]} O-O {[%emt 0:00:03]} 6. Nf3 {[%emt 0:00:11]} h6 {[%emt 0:00:02]} 7. Bh4 {[%emt 0:00:36]} b6 {[%emt 0:00:02]} 8. Rc1 {[%emt 0:00:20]} Bb7 {[%emt 0:00:30]} 9. Bxf6 {[%emt 0:00:10]} Bxf6 {[%emt 0:00:02]} 10. cxd5 {[%emt 0:00:01]} exd5 {[%emt 0:00:02]} 11. b4 {[%emt 0:00:04]} c5 {[%emt 0:01:22]} 12. bxc5 {[%emt 0:00:41]} bxc5 {[%emt 0:00:02]} 13. dxc5 {[%emt 0:00:08]} Qa5 {[%emt 0:00:02]} 14. Qd2 {[%emt 0:00:29]} Na6 {[%emt 0:01:19]} 15. Nb5 {[%emt 0:03:39]} Qxd2+ {[%emt 0:04:37]} 16. Kxd2 {[%emt 0:03:34]} Bc6 {[%emt 0:00:52]} 17. Nfd4 {[%emt 0:03:56]} Bxb5 {[%emt 0:02:13]} 18. Bxb5 {[%emt 0:00:52]} Nc7 {[%emt 0:00:20]} 19. Bd3 {[%emt 0:05:57]} Ne6 {[%emt 0:03:16]} 20. Nxe6 {[%emt 0:01:36]} fxe6 {[%emt 0:00:02]} 21. f4 {[%emt 0:04:29]} Rfc8 {[%emt 0:01:17]} 22. Ba6 {[%emt 0:01:12]} Rc7 {[%emt 0:00:12]} 23. c6 {[%emt 0:01:34]} e5 {[%emt 0:01:38]} 24. Rc5 {[%emt 0:02:35]} Rd8 {[%emt 0:02:46]} 25. Rb1 {[%emt 0:00:43]} exf4 {[%emt 0:01:43]} 26. exf4 {[%emt 0:00:13]} Bd4 {[%emt 0:00:23]} 27. Rc2 {[%emt 0:00:48]} Bb6 {[%emt 0:01:55]} 28. Rf1 {[%emt 0:05:27]} Rd6 {[%emt 0:05:05]} 29. Bb5 {[%emt 0:00:24]} Re7 {[%emt 0:02:34]} 30. Rf3 {[%emt 0:00:26]} Kf7 {[%emt 0:02:44]} 31. g3 {[%emt 0:09:45]} 1/2-1/2

[Event "Lidkoping Open 2019"]
[Site "Lidkoping"]
[Date "2019.08.24"]
[Round "3.14"]
[White "Ronneland, Daniel"]
[Black "Andersson, Kjell-Ake"]
[Result "1-0"]
[ECO "C05"]
[WhiteElo "2137"]
[BlackElo "1922"]
[Annotator "NA"]
[PlyCount "57"]
[EventDate "2019.08.19"]
[EventType "swiss"]
[EventCountry "SWE"]
[SourceTitle "playchess.com"]
[Source "ChessBase"]
[SourceQuality "1"]
[TimeControl "2700+10"]

1. e4 {[%emt 0:00:00]} e6 {[%emt 0:03:50]} 2. d4 {[%emt 0:00:00]} d5 {[%emt 0:00:10]} 3. Nd2 {[%emt 0:00:07]} Nf6 {[%emt 0:00:37]} 4. e5 {[%emt 0:00:04]} Nfd7 {[%emt 0:00:04]} 5. f4 {[%emt 0:00:17]} c5 {[%emt 0:00:54]} 6. c3 {[%emt 0:00:10]} Nc6 {[%emt 0:00:07]} 7. Ne2 {[%emt 0:00:07]} Qb6 {[%emt 0:00:16]} 8. Nf3 {[%emt 0:00:07]} cxd4 {[%emt 0:00:20]} 9. cxd4 {[%emt 0:00:05]} Bb4+ {[%emt 0:00:15]} 10. Bd2 {[%emt 0:00:06]} O-O {[%emt 0:01:36]} 11. Bxb4 {[%emt 0:03:51]} Qxb4+ {[%emt 0:00:52]} 12. Qd2 {[%emt 0:00:06]} f6 {[%emt 0:03:16]} 13. Qxb4 {[%emt 0:03:05]} Nxb4 {[%emt 0:00:47]} 14. Kd2 {[%emt 0:00:04]} fxe5 {[%emt 0:00:32]} 15. fxe5 {[%emt 0:00:34]} Nb6 {[%emt 0:00:58]} 16. b3 {[%emt 0:02:07]} Bd7 {[%emt 0:01:10]} 17. Nc3 {[%emt 0:02:54]} a6 {[%emt 0:02:46]} 18. a3 {[%emt 0:00:22]} Nc6 {[%emt 0:00:06]} 19. Bd3 {[%emt 0:07:24]} Rxf3 {[%emt 0:02:32]} 20. gxf3 {[%emt 0:00:04]} Nxd4 {[%emt 0:00:03]} 21. Raf1 {[%emt 0:01:44]} Nxb3+ {[%emt 0:00:29]} 22. Kc2 {[%emt 0:00:07]} Nd4+ {[%emt 0:01:19]} 23. Kb2 {[%emt 0:00:14]} Rc8 {[%emt 0:00:55]} 24. Rhg1 {[%emt 0:01:45]} Nc6 {[%emt 0:01:15]} 25. f4 {[%emt 0:00:58]} Na5 {[%emt 0:00:55]} 26. Rg3 {[%emt 0:03:17]} Nbc4+ {[%emt 0:01:49]} 27. Ka2 {[%emt 0:00:56]} Kh8 {[%emt 0:06:57]} 28. Rfg1 {[%emt 0:00:27]} Rg8 {[%emt 0:01:19]} 29. Bxh7 {[%emt 0:04:11]} 1-0

[Event "Lidkoping Open 2019"]
[Site "Lidkoping"]
[Date "2019.08.24"]
[Round "3.15"]
[White "Frisk, Anders"]
[Black "Lind, Jan-Olov"]
[Result "0-1"]
[ECO "A36"]
[WhiteElo "1776"]
[BlackElo "2164"]
[Annotator "NA"]
[PlyCount "62"]
[EventDate "2019.08.19"]
[EventType "swiss"]
[EventCountry "SWE"]
[SourceTitle "playchess.com"]
[Source "ChessBase"]
[SourceQuality "1"]
[TimeControl "2700+10"]

1. c4 {[%emt 0:00:00]} c5 {[%emt 0:00:43]} 2. Nc3 {[%emt 0:00:01]} Nc6 {[%emt 0:00:09]} 3. g3 {[%emt 0:00:06]} g6 {[%emt 0:00:04]} 4. Bg2 {[%emt 0:00:18]} Bg7 {[%emt 0:00:04]} 5. a3 {[%emt 0:01:44]} d6 {[%emt 0:03:08]} 6. Rb1 {[%emt 0:00:38]} a5 {[%emt 0:00:18]} 7. d3 {[%emt 0:00:41]} e5 {[%emt 0:00:21]} 8. Bd2 {[%emt 0:01:22]} Nge7 {[%emt 0:01:28]} 9. e3 {[%emt 0:02:02]} O-O {[%emt 0:01:37]} 10. Nge2 {[%emt 0:00:08]} Rb8 {[%emt 0:00:18]} 11. O-O {[%emt 0:02:32]} Be6 {[%emt 0:00:14]} 12. Nd5 {[%emt 0:02:31]} b5 {[%emt 0:02:18]} 13. Nxe7+ {[%emt 0:05:00]} Nxe7 {[%emt 0:00:05]} 14. cxb5 {[%emt 0:01:33]} Rxb5 {[%emt 0:02:14]} 15. Qa4 {[%emt 0:04:22]} Bd7 {[%emt 0:10:02]} 16. Qc4 {[%emt 0:01:49]} Qb8 {[%emt 0:03:00]} 17. Qc1 {[%emt 0:05:54]} a4 {[%emt 0:05:57]} 18. Nc3 {[%emt 0:03:14]} Rb3 {[%emt 0:01:33]} 19. Bf3 {[%emt 0:02:18]} Qa7 {[%emt 0:00:29]} 20. Bd1 {[%emt 0:03:33]} Rb6 {[%emt 0:00:09]} 21. b4 {[%emt 0:02:26]} axb3 {[%emt 0:00:11]} 22. Rxb3 {[%emt 0:01:12]} Rxb3 {[%emt 0:00:36]} 23. Bxb3 {[%emt 0:00:04]} Bh3 {[%emt 0:00:55]} 24. Re1 {[%emt 0:00:45]} Qb7 {[%emt 0:00:21]} 25. Bxf7+ {[%emt 0:01:27]} Rxf7 {[%emt 0:00:12]} 26. Ne4 {[%emt 0:00:23]} h6 {[%emt 0:01:54]} 27. Qc4 {[%emt 0:01:03]} d5 {[%emt 0:04:22]} 28. Nxc5 {[%emt 0:00:52]} Qc8 {[%emt 0:01:55]} 29. Qb5 {[%emt 0:00:45]} Qg4 {[%emt 0:01:15]} 30. Qd7 {[%emt 0:01:00]} Qxd7 {[%emt 0:00:30]} 31. Nxd7 {[%emt 0:00:01]} Bxd7 {[%emt 0:00:02]} 0-1

[Event "Lidkoping Open 2019"]
[Site "Lidkoping"]
[Date "2019.08.24"]
[Round "3.16"]
[White "Andersen, Dag"]
[Black "Nordlund, Keith"]
[Result "1/2-1/2"]
[ECO "A43"]
[WhiteElo "1873"]
[BlackElo "2013"]
[Annotator "NA"]
[PlyCount "31"]
[EventDate "2019.08.19"]
[EventType "swiss"]
[EventCountry "SWE"]
[SourceTitle "playchess.com"]
[Source "ChessBase"]
[SourceQuality "1"]
[TimeControl "2700+10"]

1. d4 {[%emt 0:00:00]} Nf6 {[%emt 0:00:02]} 2. Nf3 {[%emt 0:00:06]} c5 {[%emt 0:00:24]} 3. d5 {[%emt 0:00:08]} b5 {[%emt 0:01:00]} 4. g3 {[%emt 0:00:46]} Bb7 {[%emt 0:01:44]} 5. Bg2 {[%emt 0:00:18]} e6 {[%emt 0:02:29]} 6. dxe6 {[%emt 0:02:03]} fxe6 {[%emt 0:00:18]} 7. O-O {[%emt 0:00:12]} Be7 {[%emt 0:02:39]} 8. Bf4 {[%emt 0:01:32]} Qb6 {[%emt 0:01:34]} 9. c3 {[%emt 0:04:34]} O-O {[%emt 0:01:49]} 10. Na3 {[%emt 0:00:49]} a5 {[%emt 0:05:30]} 11. c4 {[%emt 0:00:57]} b4 {[%emt 0:00:41]} 12. Nb5 {[%emt 0:00:55]} d5 {[%emt 0:02:07]} 13. Nc7 {[%emt 0:00:46]} Ra7 {[%emt 0:03:14]} 14. Nb5 {[%emt 0:00:39]} Ra8 {[%emt 0:01:42]} 15. Nc7 {[%emt 0:00:07]} Ra7 {[%emt 0:01:13]} 16. Nb5 {[%emt 0:33:48]} 1/2-1/2

[Event "Lidkoping Open 2019"]
[Site "Lidkoping"]
[Date "2019.08.24"]
[Round "3.17"]
[White "Loken, Espen"]
[Black "Svensson, Leif"]
[Result "1-0"]
[ECO "C22"]
[WhiteElo "1805"]
[BlackElo "2027"]
[Annotator "NA"]
[PlyCount "45"]
[EventDate "2019.08.19"]
[EventType "swiss"]
[EventCountry "SWE"]
[SourceTitle "playchess.com"]
[Source "ChessBase"]
[SourceQuality "1"]
[TimeControl "2700+10"]

1. e4 {[%emt 0:00:00]} e5 {[%emt 0:00:00]} 2. d4 {[%emt 0:00:03]} exd4 {[%emt 0:00:03]} 3. Qxd4 {[%emt 0:00:06]} Nc6 {[%emt 0:01:45]} 4. Qe3 {[%emt 0:00:07]} b6 {[%emt 0:01:45]} 5. Bd2 {[%emt 0:00:23]} Bc5 {[%emt 0:00:22]} 6. Qg3 {[%emt 0:00:18]} Qe7 {[%emt 0:02:28]} 7. Nc3 {[%emt 0:00:37]} Nf6 {[%emt 0:08:29]} 8. O-O-O {[%emt 0:00:27]} O-O {[%emt 0:04:28]} 9. f4 {[%emt 0:00:23]} Nxe4 {[%emt 0:00:41]} 10. Nxe4 {[%emt 0:00:39]} Qxe4 {[%emt 0:00:06]} 11. Bd3 {[%emt 0:00:22]} Qa4 {[%emt 0:04:25]} 12. Bc3 {[%emt 0:01:32]} Bd4 {[%emt 0:01:12]} 13. Ne2 {[%emt 0:01:12]} Bxc3 {[%emt 0:00:28]} 14. Nxc3 {[%emt 0:00:00]} Qa5 {[%emt 0:00:35]} 15. Qh4 {[%emt 0:00:22]} h6 {[%emt 0:03:59]} 16. a3 {[%emt 0:00:16]} Ba6 {[%emt 0:03:26]} 17. g4 {[%emt 0:00:45]} Bxd3 {[%emt 0:00:51]} 18. Rxd3 {[%emt 0:00:08]} Qc5 {[%emt 0:00:26]} 19. g5 {[%emt 0:00:30]} hxg5 {[%emt 0:03:10]} 20. fxg5 {[%emt 0:00:25]} f6 {[%emt 0:00:05]} 21. Ne4 {[%emt 0:00:39]} fxg5 {[%emt 0:01:15]} 22. Nxg5 {[%emt 0:00:20]} Qf5 {[%emt 0:00:03]} 23. Rf3 {[%emt 0:00:46]} 1-0

[Event "Lidkoping Open 2019"]
[Site "Lidkoping"]
[Date "2019.08.24"]
[Round "3.18"]
[White "Andersson, Christian"]
[Black "Johansson, Stefan"]
[Result "1/2-1/2"]
[ECO "A36"]
[WhiteElo "1794"]
[BlackElo "2016"]
[Annotator "NA"]
[PlyCount "111"]
[EventDate "2019.08.19"]
[EventType "swiss"]
[EventCountry "SWE"]
[SourceTitle "playchess.com"]
[Source "ChessBase"]
[SourceQuality "1"]
[TimeControl "2700+10"]

1. c4 {[%emt 0:00:00]} c5 {[%emt 0:00:04]} 2. g3 {[%emt 0:00:32]} Nc6 {[%emt 0:00:07]} 3. Bg2 {[%emt 0:00:17]} Nf6 {[%emt 0:00:28]} 4. Nc3 {[%emt 0:00:18]} e6 {[%emt 0:00:06]} 5. e4 {[%emt 0:01:10]} d6 {[%emt 0:00:28]} 6. Nf3 {[%emt 0:01:23]} Be7 {[%emt 0:00:40]} 7. O-O {[%emt 0:00:42]} a6 {[%emt 0:00:01]} 8. d4 {[%emt 0:04:28]} cxd4 {[%emt 0:00:14]} 9. Nxd4 {[%emt 0:00:17]} Na5 {[%emt 0:01:30]} 10. b3 {[%emt 0:04:46]} Bd7 {[%emt 0:02:18]} 11. h3 {[%emt 0:00:18]} Rb8 {[%emt 0:00:58]} 12. Qe2 {[%emt 0:01:48]} Nc6 {[%emt 0:03:10]} 13. Be3 {[%emt 0:01:00]} Nxd4 {[%emt 0:01:50]} 14. Bxd4 {[%emt 0:00:04]} b5 {[%emt 0:00:08]} 15. e5 {[%emt 0:01:34]} dxe5 {[%emt 0:06:10]} 16. Ba7 {[%emt 0:02:19]} Rc8 {[%emt 0:05:39]} 17. Bb7 {[%emt 0:01:08]} Qc7 {[%emt 0:01:05]} 18. Bxc8 {[%emt 0:00:58]} Bxc8 {[%emt 0:00:05]} 19. Be3 {[%emt 0:02:03]} Bb7 {[%emt 0:03:28]} 20. Rac1 {[%emt 0:02:43]} Qc6 {[%emt 0:01:41]} 21. f3 {[%emt 0:00:31]} b4 {[%emt 0:02:04]} 22. Na4 {[%emt 0:00:50]} O-O {[%emt 0:02:11]} 23. Qf2 {[%emt 0:02:03]} Rc8 {[%emt 0:01:11]} 24. Kh2 {[%emt 0:01:32]} Nh5 {[%emt 0:00:46]} 25. g4 {[%emt 0:02:32]} Nf6 {[%emt 0:02:16]} 26. Rcd1 {[%emt 0:00:22]} Bd6 {[%emt 0:01:05]} 27. Kg1 {[%emt 0:02:34]} Ne8 {[%emt 0:01:41]} 28. c5 {[%emt 0:04:06]} Bc7 {[%emt 0:00:19]} 29. Nb6 {[%emt 0:00:11]} Rb8 {[%emt 0:00:06]} 30. Nc4 {[%emt 0:00:56]} f5 {[%emt 0:00:15]} 31. Bc1 {[%emt 0:01:15]} Nf6 {[%emt 0:00:21]} 32. Bb2 {[%emt 0:00:08]} fxg4 {[%emt 0:00:01]} 33. Bxe5 {[%emt 0:00:11]} Rf8 {[%emt 0:02:26]} 34. Bxc7 {[%emt 0:00:32]} Qxc7 {[%emt 0:00:03]} 35. fxg4 {[%emt 0:01:11]} Qc6 {[%emt 0:00:23]} 36. Kh2 {[%emt 0:00:13]} Qc7+ {[%emt 0:00:01]} 37. Qf4 {[%emt 0:00:11]} Qxc5 {[%emt 0:00:13]} 38. Qe5 {[%emt 0:01:54]} Qc6 {[%emt 0:00:07]} 39. Qe2 {[%emt 0:00:07]} h6 {[%emt 0:00:12]} 40. Ne5 {[%emt 0:00:02]} Qc3 {[%emt 0:00:49]} 41. Rd3 {[%emt 0:00:08]} Qc7 {[%emt 0:00:11]} 42. Kg1 {[%emt 0:00:26]} Qb6+ {[%emt 0:00:01]} 43. Kh2 {[%emt 0:00:15]} Qc7 {[%emt 0:00:02]} 44. Kg1 {[%emt 0:00:25]} Qc5+ {[%emt 0:00:00]} 45. Qe3 {[%emt 0:00:12]} Qc2 {[%emt 0:00:16]} 46. Rd2 {[%emt 0:00:07]} Qc7 {[%emt 0:00:09]} 47. Ng6 {[%emt 0:00:15]} Re8 {[%emt 0:00:04]} 48. Ne5 {[%emt 0:00:30]} Ne4 {[%emt 0:00:06]} 49. Rd7 {[%emt 0:00:24]} Qxe5 {[%emt 0:00:37]} 50. Rxb7 {[%emt 0:00:08]} Qd5 {[%emt 0:00:02]} 51. Rff7 {[%emt 0:01:31]} Qd1+ {[%emt 0:00:40]} 52. Kg2 {[%emt 0:00:00]} Qc2+ {[%emt 0:00:01]} 53. Kg1 {[%emt 0:00:00]} Qd1+ {[%emt 0:00:07]} 54. Kg2 {[%emt 0:00:00]} Qc2+ {[%emt 0:00:05]} 55. Kg1 {[%emt 0:00:00]} Qd1+ {[%emt 0:00:07]} 56. Kg2 {[%emt 0:00:00]} 1/2-1/2